bitfinex-derivatives/quotes_BTCF0:USTF0_20250406
["timestamp","ask_amount","ask_price","bid_price","bid_amount"]
[1743958214755,0.48242026,82204.0,82203.0,0.08654705]
[1743958215060,0.6052978,82204.0,82203.0,0.15654705]
[1743958215246,0.2444978,82204.0,82203.0,0.15654705]
[1743958216358,0.2114978,82204.0,82203.0,0.15654705]
[1743958216560,0.0408,82204.0,82203.0,0.15654705]
[1743958216763,0.3608,82211.0,82210.0,0.0851716]
[1743958217654,0.3608,82211.0,82210.0,0.1510716]
[1743958217960,0.00018213,82212.0,82211.0,0.0851705]
[1743958218255,0.00018213,82212.0,82211.0,0.1534705]
[1743958219451,18.114563,92941.0,82225.0,0.085156]
[1743958219452,0.10864644,82226.0,82225.0,0.085156]
[1743958219663,0.30912144,82226.0,82225.0,0.085156]
[1743958220061,0.30988144,82226.0,82225.0,0.085916]
[1743958220267,0.22472644,82226.0,82225.0,0.154216]
[1743958220565,0.13940644,82226.0,82225.0,0.515016]
[1743958220768,0.10940644,82226.0,82225.0,0.665016]
[1743958221063,0.14446199,82231.0,82230.0,0.0851509]
[1743958221267,0.14446199,82231.0,82230.0,0.0861509]
[1743958221566,8e-05,82233.0,82232.0,0.0851488]
[1743958221866,0.18061328,82237.0,82236.0,0.0851447]
[1743958222065,0.18161328,82237.0,82236.0,0.0861447]
[1743958223059,0.001,82237.0,82236.0,0.0861447]
[1743958223460,0.0852166,82244.0,82243.0,0.0851374]
[1743958223660,0.2152166,82244.0,82243.0,0.0851374]
[1743958223870,0.13008,82244.0,82243.0,0.0851374]
[1743958224365,0.13008,82244.0,82243.0,0.1532374]
[1743958225258,0.2152164,82244.0,82243.0,0.1532374]
[1743958225869,0.2152164,82244.0,82243.0,0.0348]
[1743958226264,0.2152164,82244.0,82243.0,0.1199374]
[1743958226463,0.2151364,82244.0,82243.0,0.1199374]
[1743958228469,0.2501364,82244.0,82243.0,0.1199374]
[1743958228670,0.2511364,82244.0,82243.0,0.1209374]
[1743958231464,0.2161364,82244.0,82243.0,0.1209374]
[1743958232767,0.2161364,82244.0,82243.0,0.0358]
[1743958233072,0.2508364,82244.0,82243.0,0.0348]
[1743958233272,0.2508364,82244.0,82243.0,0.1199374]
[1743958233574,0.2508364,82244.0,82243.0,0.001]
[1743958233771,0.1277148,82239.0,82236.0,0.1212438]
[1743958234076,0.1477148,82239.0,82238.0,0.0851416]
[1743958234378,0.1477148,82239.0,82238.0,0.0861816]
[1743958235671,0.0625712,82239.0,82238.0,0.0861816]
[1743958237771,0.0625712,82239.0,82238.0,0.00104]
[1743958237963,0.0625712,82239.0,82231.0,0.0693]
[1743958237964,0.0851447,82236.0,82231.0,0.0851489]
[1743958238167,0.1351447,82236.0,82235.0,0.00118239]
[1743958241375,0.1351447,82236.0,82235.0,0.00018239]
[1743958242583,0.0851633,82218.0,82217.0,0.4459625]
[1743958242783,0.1051633,82218.0,82217.0,0.36184]
[1743958243082,0.1051633,82218.0,82217.0,0.4470043]
[1743958243284,0.1051633,82218.0,82217.0,0.4817043]
[1743958243478,0.02,82218.0,82217.0,0.4817043]
[1743958243681,0.127728,82229.0,82228.0,0.0851519]
[1743958243876,0.02,82229.0,82228.0,0.0861519]
[1743958244574,0.00018201,82237.0,82236.0,0.0851447]
[1743958245087,0.00018201,82237.0,82236.0,0.1208447]
[1743958245579,0.08532561,82237.0,82236.0,0.1208447]
[1743958245983,0.10532561,82237.0,82236.0,0.1208447]
[1743958246484,0.10532561,82237.0,82236.0,0.001]
[1743958246687,0.1277211,82235.0,82234.0,0.0851467]
[1743958246879,0.1477211,82235.0,82234.0,0.0861467]
[1743958247079,0.1814211,82235.0,82234.0,0.0861467]
[1743958248580,0.5422211,82235.0,82234.0,0.0861467]
[1743958249373,0.5422211,82235.0,82234.0,0.001]
[1743958252077,0.5776211,82235.0,82234.0,0.001]
[1743958252480,0.5776211,82235.0,82228.0,0.00018239]
[1743958252481,0.0851519,82229.0,82228.0,0.00018239]
[1743958252678,0.4302319,82229.0,82228.0,0.00018239]
[1743958252888,0.0851643,82217.0,82214.0,0.26084901]
[1743958253074,0.0851664,82215.0,82214.0,0.26084901]
[1743958253279,0.1151664,82215.0,82214.0,0.21826581]
[1743958253497,0.1861664,82215.0,82214.0,0.21826581]
[1743958255077,0.1868864,82215.0,82214.0,0.21898581]
[1743958255795,0.1868864,82215.0,82207.0,8e-05]
[1743958255796,0.0851737,82208.0,82207.0,8e-05]
[1743958256086,0.7267337,82208.0,82207.0,8e-05]
[1743958256786,0.7975337,82208.0,82207.0,8e-05]
[1743958257884,0.4507737,82208.0,82207.0,0.0852547]
[1743958258095,0.28076,82208.0,82207.0,0.1196747]
[1743958258884,0.3659337,82208.0,82207.0,0.1196747]
[1743958261093,0.28076,82208.0,82207.0,0.1196747]
[1743958261294,0.3659337,82208.0,82207.0,0.1196747]
[1743958261493,0.28076,82208.0,82207.0,0.1196747]
[1743958261688,0.28076,82208.0,82207.0,0.4804747]
[1743958261895,0.3659337,82208.0,82207.0,0.4804747]
[1743958262096,0.3659337,82208.0,82207.0,0.5149747]
[1743958262497,0.3659337,82208.0,82207.0,0.1541747]
[1743958262996,0.3659337,82208.0,82207.0,0.06892]
[1743958263298,0.3659337,82208.0,82207.0,0.0682]
[1743958263697,0.4329337,82208.0,82207.0,0.0682]
[1743958264397,0.4329337,82208.0,82207.0,0.1533747]
[1743958264898,0.3659337,82208.0,82207.0,0.1533747]
[1743958265097,0.3659337,82208.0,82207.0,0.1540147]
[1743958266203,0.36552,82208.0,82207.0,0.1540147]
[1743958266696,0.28076,82208.0,82207.0,0.1540147]
[1743958266885,0.00076,82208.0,82207.0,0.1540147]
[1743958267085,0.0851565,82225.0,82215.0,0.0851664]
[1743958267286,0.0425724,82236.0,82215.0,0.4466464]
[1743958267287,0.01018239,82216.0,82215.0,0.4466464]
[1743958267489,0.01018239,82216.0,82215.0,0.5144464]
[1743958267694,0.01098239,82216.0,82215.0,0.5144464]
[1743958268602,0.09614779,82216.0,82215.0,0.5144464]
[1743958269998,0.09614779,82216.0,82215.0,0.06848]
[1743958270185,0.09614779,82216.0,82215.0,0.0678]
[1743958271092,0.09614779,82216.0,82215.0,0.1529664]
[1743958274507,0.09614779,82216.0,82215.0,0.0678]
[1743958274801,0.0851716,82210.0,82209.0,8e-05]
[1743958275105,0.0851716,82210.0,82209.0,0.0860126]
[1743958275106,0.2107716,82210.0,82209.0,0.0860126]
[1743958275306,0.2107716,82210.0,82209.0,0.1524126]
[1743958275705,0.2445716,82210.0,82209.0,0.1523326]
[1743958275904,0.2445716,82210.0,82209.0,0.00076]
[1743958276298,0.2445716,82210.0,82209.0,0.0859326]
[1743958276497,0.2445716,82210.0,82209.0,0.00076]
[1743958277407,0.0851747,82207.0,82206.0,1e-08]
[1743958277604,0.271,82207.0,82198.0,0.29093587]
[1743958277811,0.445983,82199.0,82198.0,0.29157587]
[1743958278005,0.71722301,82199.0,82198.0,0.29157587]
[1743958278206,0.0851913,82191.0,82190.0,0.36266337]
[1743958278407,0.7923513,82191.0,82190.0,0.36346337]
[1743958278604,0.0851985,82184.0,82183.0,0.43713476]
[1743958278804,0.042604,82175.0,82152.0,0.0426157]
[1743958279012,0.3608,82172.0,82148.0,0.3608]
[1743958279219,0.0426137,82157.0,82156.0,0.0853041]
[1743958279407,0.1377737,82157.0,82156.0,0.0853041]
[1743958279717,0.09680001,82157.0,82156.0,0.0852241]
[1743958279907,0.18202651,82157.0,82156.0,0.1198241]
[1743958280409,0.54282651,82157.0,82156.0,0.0346]
[1743958280610,0.0852296,82154.0,82153.0,8e-05]
[1743958280809,0.10694961,82154.0,82153.0,8e-05]
[1743958281013,0.0852348,82149.0,82148.0,0.03478251]
[1743958281215,0.02,82149.0,82148.0,0.12001841]
[1743958281418,0.1052,82149.0,82148.0,0.48089841]
[1743958281614,0.0852,82149.0,82148.0,0.12009841]
[1743958281908,0.0852,82149.0,82148.0,0.15649841]
[1743958282417,0.1704348,82149.0,82148.0,0.15649841]
[1743958282610,0.0852348,82149.0,82148.0,0.07126251]
[1743958282806,0.1803948,82149.0,82148.0,0.03666251]
[1743958283005,0.18199481,82149.0,82148.0,0.00018251]
[1743958283206,0.1278687,82140.0,82139.0,0.0852442]
[1743958283407,0.00160001,82140.0,82139.0,0.0852442]
[1743958283708,0.1194359,82148.0,82147.0,0.0852369]
[1743958283908,0.14103591,82148.0,82147.0,0.0852369]
[1743958284505,0.14103591,82148.0,82147.0,0.1560369]
[1743958287026,0.0852442,82140.0,82132.0,0.3608]
[1743958287317,0.0852473,82137.0,82136.0,0.00024]
[1743958287509,0.0852473,82137.0,82130.0,0.0852536]
[1743958287510,0.1278781,82134.0,82133.0,0.0852513]
[1743958287710,0.0852514,82133.0,82132.0,0.0355]
[1743958287904,0.1562314,82133.0,82132.0,0.0355]
[1743958288305,0.0852525,82132.0,82131.0,0.00060878]
[1743958288504,0.09685251,82132.0,82131.0,0.00060878]
[1743958288812,0.16615251,82132.0,82131.0,0.00060878]
[1743958289517,0.17548592,82132.0,82131.0,0.00060878]
[1743958291516,0.09023342,82132.0,82114.0,0.0696]
[1743958291716,0.0852701,82115.0,82114.0,0.0337]
[1743958292017,0.17195011,82115.0,82114.0,0.0337]
[1743958292319,0.0852815,82104.0,82103.0,0.1211823]
[1743958292517,0.0426401,82106.0,82105.0,0.0852805]
[1743958292713,0.0852774,82108.0,82107.0,0.0852777]
[1743958292918,0.00018262,82112.0,82110.0,0.0852745]
[1743958293115,0.08686263,82112.0,82111.0,0.4819743]
[1743958293311,0.00018262,82112.0,82111.0,0.4819743]
[1743958293718,0.00178263,82112.0,82111.0,0.5156743]
[1743958294021,0.08545582,82112.0,82111.0,0.3608]
[1743958294221,0.0852764,82109.0,82108.0,0.0355]
[1743958294426,0.0852826,82103.0,82102.0,0.0354]
[1743958294617,0.17204261,82103.0,82102.0,0.0354]
[1743958295020,0.0852847,82101.0,82095.0,0.00060905]
[1743958295318,0.09688471,82101.0,82100.0,0.09479262]
[1743958296315,0.12988471,82101.0,82100.0,0.09479262]
[1743958299719,0.12988471,82101.0,82095.0,0.00060905]
[1743958299720,0.0852899,82096.0,82095.0,0.00060905]
[1743958299913,0.10700991,82096.0,82095.0,0.00060905]
[1743958301121,0.46780991,82096.0,82095.0,0.00060905]
[1743958301327,0.46780991,82096.0,82095.0,0.08589995]
[1743958301328,0.00172001,82096.0,82095.0,0.08589995]
[1743958301524,0.0852813,82106.0,82105.0,0.0852784]
[1743958301725,0.0852836,82102.0,82097.0,0.3608]
[1743958302028,0.17216871,82102.0,82101.0,0.0852836]
[1743958303528,0.08688481,82102.0,82098.0,0.0723]
[1743958303722,0.0426443,82098.0,82078.0,0.3608]
[1743958304030,0.0852899,82096.0,82094.0,0.0694]
[1743958304219,0.0869699,82096.0,82095.0,0.07000905]
[1743958304822,0.0969699,82096.0,82095.0,0.07000905]
[1743958305321,0.0969699,82096.0,82095.0,0.15529995]
[1743958306234,0.0969699,82096.0,82095.0,0.07000905]
[1743958307529,0.0969699,82096.0,82095.0,0.15529995]
[1743958308332,0.0969699,82096.0,82095.0,0.07000905]
[1743958308832,0.0969699,82096.0,82095.0,0.15529995]
[1743958309532,0.0969699,82096.0,82095.0,0.07000905]
[1743958310434,0.0969699,82096.0,82095.0,0.15529995]
[1743958310730,0.0969699,82096.0,82095.0,0.07000905]
[1743958310932,0.1835699,82096.0,82095.0,0.03510905]
[1743958311535,0.2500699,82096.0,82095.0,0.03510905]
[1743958313127,0.2499499,82096.0,82095.0,0.03510905]
[1743958313328,0.2165499,82096.0,82095.0,0.12039995]
[1743958313541,0.01168,82096.0,82095.0,0.12039995]
[1743958313730,0.1735299,82096.0,82095.0,0.12039995]
[1743958313930,0.1735299,82096.0,82095.0,0.03510905]
[1743958314228,0.23277799,82096.0,82095.0,0.03510905]
[1743958315635,0.23269799,82096.0,82095.0,0.00060905]
[1743958316828,0.24269799,82096.0,82095.0,0.00060905]
[1743958319932,0.15621799,82096.0,82095.0,0.00060905]
[1743958320135,0.06092809,82096.0,82095.0,0.08589995]
[1743958320337,0.14740809,82096.0,82095.0,0.08589995]
[1743958320535,0.0426417,82103.0,82095.0,0.08589995]
[1743958320536,0.08545582,82112.0,82111.0,0.0852743]
[1743958320740,0.08661582,82112.0,82111.0,0.22666175]
[1743958321131,0.17313582,82112.0,82111.0,0.22666175]
[1743958321533,0.17309582,82112.0,82111.0,0.29566175]
[1743958322832,0.17309582,82112.0,82111.0,0.19802658]
[1743958323034,0.53389582,82112.0,82111.0,0.069]
[1743958324826,0.17309582,82112.0,82111.0,0.069]
[1743958325026,0.08661582,82112.0,82111.0,0.069]
[1743958325339,0.00134262,82112.0,82111.0,0.1542743]
[1743958325533,0.26689157,82112.0,82111.0,0.1542743]
[1743958325733,0.18161837,82112.0,82111.0,0.1542743]
[1743958325933,0.26689157,82112.0,82111.0,0.1542743]
[1743958328041,0.26689157,82112.0,82111.0,0.069]
[1743958328241,0.26689157,82112.0,82111.0,0.1542743]
[1743958331037,0.18161837,82112.0,82111.0,0.1542743]
[1743958331244,0.08644,82129.0,82120.0,0.0852649]
[1743958331444,0.0852569,82128.0,82120.0,0.4460649]
[1743958331637,0.0852558,82129.0,82120.0,0.4460649]
[1743958331838,0.13835981,82132.0,82120.0,0.4460649]
[1743958332038,0.0852559,82129.0,82120.0,0.5140649]
[1743958332240,0.0426268,82131.0,82120.0,0.41653861]
[1743958332441,0.4472,82138.0,82135.0,0.0852494]
[1743958332742,0.44832001,82138.0,82137.0,0.0852473]
[1743958332947,0.17276621,82138.0,82137.0,0.0852473]
[1743958333245,0.17276621,82138.0,82137.0,0.1532473]
[1743958334540,0.0852545,82130.0,82129.0,0.00018262]
[1743958334952,0.08637451,82130.0,82129.0,0.00018262]
[1743958335141,0.15627451,82130.0,82129.0,0.00086262]
[1743958335447,0.15627451,82130.0,82129.0,0.08543822]
[1743958335643,0.07102001,82130.0,82129.0,0.15537822]
[1743958335845,0.07102001,82130.0,82129.0,0.51617822]
[1743958335846,0.00112001,82130.0,82129.0,0.51617822]
[1743958336058,0.18086067,82138.0,82137.0,0.0852473]
[1743958336235,0.08752,82138.0,82137.0,0.0852473]
[1743958336439,0.00116,82138.0,82137.0,0.0858873]
[1743958336635,0.00116,82138.0,82137.0,0.1540873]
[1743958336847,0.3608,82148.0,82144.0,0.08524]
[1743958337252,0.3954,82148.0,82144.0,0.08524]
[1743958337454,0.00102262,82145.0,82144.0,0.08588]
[1743958337644,0.00018262,82145.0,82144.0,0.15344]
[1743958342054,0.08542162,82145.0,82144.0,0.08524]
[1743958342354,0.00018262,82145.0,82144.0,0.08524]
[1743958342541,0.00094262,82145.0,82144.0,0.086]
[1743958343448,0.0852421,82143.0,82142.0,0.0852419]
[1743958343644,0.08620211,82143.0,82142.0,0.0858819]
[1743958343845,0.15560211,82143.0,82142.0,0.0852419]
[1743958344037,0.16560211,82143.0,82142.0,0.0852419]
[1743958344242,0.04446001,82143.0,82142.0,0.0852419]
[1743958344542,0.04446001,82143.0,82142.0,0.1538419]
[1743958344543,0.00096001,82143.0,82142.0,0.1538419]
[1743958344745,0.00096001,82143.0,82142.0,0.1544819]
[1743958353961,0.00018262,82145.0,82144.0,0.08524]
[1743958354149,0.00018262,82145.0,82144.0,0.44604]
[1743958355057,0.0332,82155.0,82154.0,0.0852296]
[1743958355257,0.03416001,82155.0,82154.0,0.0858696]
[1743958356068,0.03416001,82155.0,82154.0,0.1548696]
[1743958356250,0.06696001,82155.0,82154.0,0.1548696]
[1743958356965,0.15218861,82155.0,82154.0,0.1193696]
[1743958357161,0.06696001,82155.0,82154.0,0.0858696]
[1743958357356,0.15218861,82155.0,82154.0,0.0858696]
[1743958357558,0.06696001,82155.0,82154.0,0.0858696]
[1743958357958,0.03416001,82155.0,82154.0,0.0858696]
[1743958358167,0.00096001,82155.0,82154.0,0.0858696]
[1743958358465,0.00096001,82155.0,82154.0,0.1210696]
[1743958359263,0.03496001,82155.0,82154.0,0.1210696]
[1743958360157,0.03496001,82155.0,82154.0,0.1568696]
[1743958360957,0.00096001,82155.0,82154.0,0.1568696]
[1743958361160,0.0004,82156.0,82155.0,0.0852286]
[1743958361359,0.0004,82156.0,82155.0,0.1553286]
[1743958361659,0.3608,82168.0,82162.0,0.0852213]
[1743958361960,0.0356,82167.0,82162.0,0.0852213]
[1743958362558,0.0356,82167.0,82162.0,0.1553213]
[1743958362764,0.0356,82167.0,82162.0,0.5161213]
[1743958364360,0.0729,82167.0,82162.0,0.5161213]
[1743958366760,0.0729,82167.0,82162.0,0.4466613]
[1743958366965,0.00114263,82163.0,82162.0,0.4466613]
[1743958368069,0.00114263,82163.0,82162.0,0.5213613]
[1743958368267,0.00018262,82163.0,82162.0,0.5213613]
[1743958388587,0.0356,82167.0,82166.0,0.0852172]
[1743958388784,0.0356,82167.0,82166.0,0.0858572]
[1743958389471,0.0356,82167.0,82166.0,0.1564572]
[1743958392588,0.0356,82167.0,82166.0,0.0858572]
[1743958392787,0.2708162,82167.0,82166.0,0.0858572]
[1743958392986,0.0426086,82166.0,82163.0,0.36458502]
[1743958393283,0.0852193,82165.0,82164.0,0.0852182]
[1743958393477,0.0852193,82165.0,82164.0,0.0852982]
[1743958393478,0.14195931,82165.0,82164.0,0.0852982]
[1743958393677,0.32765931,82165.0,82164.0,0.0858982]
[1743958393878,0.32765931,82165.0,82156.0,0.43623574]
[1743958393879,0.0852193,82164.0,82160.0,8e-05]
[1743958394078,0.0852265,82157.0,82156.0,0.43623574]
[1743958394279,0.47762651,82157.0,82156.0,0.56406974]
[1743958394479,0.39240001,82157.0,82156.0,0.60668204]
[1743958394791,0.03160001,82157.0,82156.0,0.60668204]
[1743958395086,0.0344,82159.0,82158.0,0.0852255]
[1743958397473,0.03600001,82159.0,82158.0,0.0852255]
[1743958397674,0.07300001,82159.0,82158.0,0.0852255]
[1743958398688,0.07300001,82159.0,82158.0,0.1224255]
[1743958399787,0.07300001,82159.0,82158.0,0.0852255]
[1743958399990,0.16822451,82159.0,82158.0,0.0852255]
[1743958401080,0.08300001,82159.0,82158.0,0.0852255]
[1743958401685,0.16822451,82159.0,82158.0,0.0852255]
[1743958402090,0.08300001,82159.0,82158.0,0.0852255]
[1743958404087,0.25130451,82159.0,82158.0,0.0852255]
[1743958405189,0.0852276,82156.0,82155.0,8e-05]
[1743958405390,0.69766761,82156.0,82155.0,8e-05]
[1743958405579,0.0852296,82154.0,82153.0,0.21877904]
[1743958405783,0.0852307,82153.0,82152.0,8e-05]
[1743958405983,0.0426158,82152.0,82142.0,0.2918089]
[1743958406185,0.4460411,82143.0,82142.0,0.09453556]
[1743958406390,0.79068111,82143.0,82142.0,0.09453556]
[1743958407096,0.86218111,82143.0,82142.0,0.09453556]
[1743958408297,1.01218111,82143.0,82142.0,0.09453556]
[1743958409393,1.01218111,82143.0,82137.0,8e-05]
[1743958409394,0.0852462,82138.0,82137.0,8e-05]
[1743958409594,0.72764621,82138.0,82137.0,8e-05]
[1743958409792,0.81068621,82138.0,82137.0,8e-05]
[1743958410200,0.88318621,82138.0,82137.0,0.0853273]
[1743958410582,0.80014621,82138.0,82137.0,0.0853273]
[1743958410793,0.88318621,82138.0,82137.0,0.0853273]
[1743958410993,0.88318621,82138.0,82137.0,0.1216273]
[1743958412787,0.88318621,82138.0,82137.0,8e-05]
[1743958412988,0.88318621,82138.0,82134.0,0.00018262]
[1743958412989,0.0852494,82135.0,82134.0,0.00018262]
[1743958413289,0.11684941,82135.0,82134.0,0.00018262]
[1743958415296,0.11684941,82135.0,82134.0,0.08543302]
[1743958415495,0.03160001,82135.0,82134.0,0.12233302]
[1743958415694,0.19984941,82135.0,82134.0,0.12233302]
[1743958420298,0.19984941,82135.0,82134.0,0.03708262]
[1743958420483,0.19984941,82135.0,82134.0,0.00018262]
[1743958422792,0.34984941,82135.0,82134.0,0.00018262]
[1743958423797,0.19984941,82135.0,82134.0,0.00018262]
[1743958426902,0.0852608,82124.0,82123.0,0.0385]
[1743958427098,0.83846081,82124.0,82123.0,0.0385]
[1743958427602,0.39240001,82124.0,82123.0,0.1237618]
[1743958427801,0.47508001,82124.0,82123.0,0.1618618]
[1743958428102,0.41588001,82124.0,82123.0,0.1618618]
[1743958428604,0.50114081,82124.0,82123.0,0.1618618]
[1743958429293,0.51029379,82124.0,82123.0,0.12001378]
[1743958429693,0.51029379,82124.0,82123.0,0.0381]
[1743958429890,0.54629379,82124.0,82123.0,0.0381]
[1743958430097,0.0852618,82123.0,82122.0,0.0387]
[1743958430393,0.14296181,82123.0,82122.0,0.0387]
[1743958430598,0.17896181,82123.0,82122.0,0.0387]
[1743958430898,0.085268,82117.0,82116.0,8e-05]
[1743958431092,0.0852691,82116.0,82115.0,0.00018262]
[1743958431290,0.80236911,82116.0,82115.0,0.00018262]
[1743958442306,0.36420001,82116.0,82115.0,0.23545272]
[1743958442897,0.44946911,82116.0,82115.0,0.30955272]
[1743958443100,0.64240001,82116.0,82115.0,0.30955272]
[1743958443320,0.08424001,82116.0,82115.0,0.30955272]
[1743958443516,0.14501676,82119.0,82118.0,0.085267]
[1743958443913,0.29771676,82123.0,82122.0,0.0852629]
[1743958444414,0.29771676,82123.0,82122.0,0.2352629]
[1743958444813,0.00018262,82132.0,82125.0,0.0852597]
[1743958445114,0.21724771,82126.0,82125.0,0.0858997]
[1743958445302,0.21724771,82126.0,82125.0,0.2358997]
[1743958446209,0.30250641,82126.0,82125.0,0.00064]
[1743958446510,0.16905871,82126.0,82125.0,0.0858997]
[1743958446906,0.09637871,82126.0,82125.0,0.0858997]
[1743958447106,0.17901871,82126.0,82125.0,0.1409997]
[1743958448113,0.09376001,82126.0,82125.0,0.1409997]
[1743958448320,0.16901871,82126.0,82125.0,0.1409997]
[1743958448514,0.10823081,82131.0,82130.0,0.0852545]
[1743958448719,0.10899081,82131.0,82130.0,0.0858945]
[1743958448920,0.10899081,82131.0,82130.0,0.4466945]
[1743958449609,0.10899081,82131.0,82130.0,0.5079945]
[1743958451209,0.00076,82131.0,82130.0,0.5079945]
[1743958452219,0.00018262,82132.0,82131.0,0.0852535]
[1743958452617,0.00018262,82132.0,82131.0,0.1471535]
[1743958453919,0.0852535,82131.0,82130.0,0.3608]
[1743958454115,0.1279027,82120.0,82119.0,0.1278924]
[1743958454316,0.2203827,82120.0,82119.0,0.1278924]
[1743958455024,0.2203827,82120.0,82119.0,0.1673924]
[1743958455224,0.2637763,82120.0,82119.0,0.1680324]
[1743958455918,0.2537763,82120.0,82119.0,0.1680324]
[1743958457527,0.08324,82120.0,82119.0,0.1680324]
[1743958458224,0.2077049,82120.0,82119.0,0.1680324]
[1743958458924,0.1252249,82120.0,82119.0,0.1680324]
[1743958459722,0.00076,82120.0,82119.0,0.1680324]
[1743958459911,0.00018262,82132.0,82131.0,0.0852535]
[1743958460117,0.00082262,82132.0,82131.0,0.0859735]
[1743958460316,0.00018262,82132.0,82131.0,0.0859735]
[1743958461229,0.00018262,82132.0,82131.0,0.1083735]
[1743958463518,0.00086262,82132.0,82131.0,0.1083735]
[1743958464326,0.00086262,82132.0,82131.0,0.0859735]
[1743958464519,0.08611512,82132.0,82131.0,0.0859735]
[1743958464827,0.16101512,82132.0,82131.0,0.0859735]
[1743958468334,0.16101512,82132.0,82131.0,0.0852535]
[1743958468529,0.16101512,82132.0,82131.0,0.0859335]
[1743958469031,0.17101512,82132.0,82131.0,0.0859335]
[1743958473836,0.16101512,82132.0,82131.0,0.0859335]
[1743958475630,0.07576262,82132.0,82131.0,0.0859335]
[1743958477136,0.11446262,82132.0,82131.0,0.0859335]
[1743958480845,0.19971512,82132.0,82131.0,0.0859335]
[1743958481437,0.19971512,82132.0,82131.0,0.0852535]
[1743958481842,0.20971512,82132.0,82131.0,0.0852535]
[1743958482834,0.0852535,82131.0,82130.0,8e-05]
[1743958483041,0.0426286,82128.0,82126.0,0.0852545]
[1743958483235,0.1255577,82127.0,82126.0,0.0859345]
[1743958483434,0.1745377,82127.0,82126.0,0.0859345]
[1743958488847,0.1745377,82127.0,82126.0,0.0852545]
[1743958490833,0.07928,82127.0,82126.0,0.0852545]
[1743958491034,0.07928,82127.0,82126.0,0.0859345]
[1743958491249,0.07928,82127.0,82126.0,0.1513345]
[1743958491547,0.03898,82127.0,82126.0,0.1513345]
[1743958493944,0.10823081,82130.0,82129.0,0.0852556]
[1743958494150,0.0386,82142.0,82133.0,0.0426252]
[1743958494451,0.14554775,82136.0,82135.0,0.0852494]
[1743958494652,0.14554775,82136.0,82135.0,0.0864894]
[1743958495149,0.14554775,82136.0,82135.0,0.1493894]
[1743958497844,0.00124001,82136.0,82135.0,0.1493894]
[1743958498151,0.0396,82137.0,82136.0,0.0852483]
[1743958498353,0.0396,82137.0,82136.0,0.0864483]
[1743958498540,0.0396,82137.0,82136.0,0.1510483]
[1743958499756,0.0402,82143.0,82142.0,0.0852421]
[1743958499956,0.0799,82143.0,82142.0,0.0864021]
[1743958500352,0.2023411,82143.0,82142.0,0.0864021]
[1743958501452,0.1171,82143.0,82142.0,0.0864021]
[1743958504454,0.2023411,82143.0,82142.0,0.0864021]
[1743958505156,0.2549621,82143.0,82140.0,0.0426215]
[1743958505454,0.2549621,82143.0,82142.0,0.0852421]
[1743958506048,0.0852442,82140.0,82139.0,8e-05]
[1743958506250,0.0852494,82135.0,82131.0,8e-05]
[1743958506449,0.5379294,82135.0,82134.0,0.08543302]
[1743958507147,0.0852525,82132.0,82131.0,0.29129746]
[1743958507351,0.0852525,82132.0,82131.0,0.37655096]
[1743958507352,0.0952525,82132.0,82131.0,0.37655096]
[1743958507642,0.0952525,82132.0,82131.0,0.37647096]
[1743958508456,0.0952525,82132.0,82131.0,0.29121746]
[1743958508656,0.0952525,82132.0,82131.0,0.37647096]
[1743958510553,0.0960925,82132.0,82131.0,0.0860935]
[1743958511054,0.1759925,82132.0,82131.0,0.0860935]
[1743958511967,0.0852556,82129.0,82128.0,8e-05]
[1743958512148,0.0852597,82125.0,82124.0,8e-05]
[1743958512456,0.4767397,82125.0,82124.0,0.00072]
[1743958512759,0.4767397,82125.0,82124.0,8e-05]
[1743958514149,0.4767397,82125.0,82124.0,0.0008]
[1743958514550,0.4767397,82125.0,82124.0,8e-05]
[1743958515556,0.0852608,82124.0,82123.0,0.08544442]
[1743958515753,0.2050808,82124.0,82123.0,0.08616442]
[1743958516153,0.2050808,82124.0,82123.0,0.00018262]
[1743958517063,0.2050808,82124.0,82123.0,0.08544442]
[1743958518064,0.2869608,82124.0,82123.0,0.08544442]
[1743958518755,0.6477608,82124.0,82123.0,0.08608442]
[1743958518955,0.6477608,82124.0,82123.0,0.00018262]
[1743958519967,0.6477608,82124.0,82123.0,0.08544442]
[1743958520766,0.6477608,82124.0,82123.0,0.00018262]
[1743958520967,0.6477608,82124.0,82123.0,0.08544442]
[1743958521471,0.6477608,82124.0,82123.0,0.00018262]
[1743958521971,0.6477608,82124.0,82123.0,0.08544442]
[1743958523074,0.0852629,82122.0,82121.0,8e-05]
[1743958523277,0.085267,82118.0,82117.0,0.0853478]
[1743958523565,0.105267,82118.0,82117.0,8e-05]
[1743958523971,0.0852732,82112.0,82111.0,0.0852741]
[1743958524270,0.0852732,82112.0,82105.0,0.0426399]
[1743958524271,0.0852753,82110.0,82109.0,8e-05]
[1743958524468,0.1052753,82110.0,82109.0,0.0853564]
[1743958524871,0.1837753,82110.0,82109.0,0.0853564]
[1743958525080,0.2228753,82110.0,82109.0,0.0853564]
[1743958528578,0.2235953,82110.0,82109.0,0.0853564]
[1743958530771,0.10082,82110.0,82109.0,0.0860364]
[1743958530969,0.1827,82110.0,82109.0,0.0860364]
[1743958531172,0.00072,82110.0,82109.0,0.0860364]
[1743958531370,0.08544752,82120.0,82119.0,0.085266]
[1743958531571,0.08612752,82120.0,82119.0,0.085266]
[1743958531879,0.08612752,82120.0,82119.0,0.086146]
[1743958532579,0.08612752,82120.0,82119.0,0.125346]
[1743958532781,0.08612752,82120.0,82119.0,0.166546]
[1743958534468,0.12412752,82120.0,82119.0,0.086146]
[1743958534670,0.12412752,82120.0,82119.0,0.085266]
[1743958534887,0.12412752,82120.0,82119.0,0.086146]
[1743958534888,0.13412752,82120.0,82119.0,0.086146]
[1743958535080,0.13412752,82120.0,82119.0,0.085266]
[1743958535471,0.13412752,82120.0,82119.0,0.086066]
[1743958536866,0.01086262,82120.0,82119.0,0.086066]
[1743958537065,0.00018262,82120.0,82119.0,0.086066]
[1743958537274,0.00098262,82120.0,82119.0,0.086066]
[1743958537481,0.00098262,82120.0,82119.0,0.164566]
[1743958539781,0.00018262,82120.0,82119.0,0.164566]
[1743958541883,0.00018262,82120.0,82119.0,0.38296181]
[1743958548579,0.08544752,82120.0,82119.0,0.30446181]
[1743958549087,0.08612752,82120.0,82119.0,0.30446181]
[1743958549277,0.00086262,82120.0,82119.0,0.086066]
[1743958549588,0.08368262,82120.0,82119.0,0.086066]
[1743958549777,0.08448262,82120.0,82119.0,0.167566]
[1743958551283,0.08368262,82120.0,82119.0,0.167566]
[1743958552194,0.08368262,82120.0,82119.0,0.127266]
[1743958552383,0.16894752,82120.0,82119.0,0.127266]
[1743958552578,0.16894752,82120.0,82119.0,0.086066]
[1743958553990,0.08368262,82120.0,82119.0,0.086066]
[1743958554488,0.16894752,82120.0,82119.0,0.0008]
[1743958554789,0.18894752,82120.0,82119.0,0.0008]
[1743958555182,0.18986752,82120.0,82119.0,0.0008]